[Event "FRA-ch Teams Top 16-B 2022"]
[Site "Chartres"]
[Date "2022.06.09"]
[Round "1.21"]
[White "Domenech, Vianney"]
[Black "Libiszewski, Fabien"]
[Result "0-1"]
[ECO "A41"]
[WhiteElo "2266"]
[BlackElo "2514"]
[Annotator "TA"]
[PlyCount "100"]
[EventDate "2022.06.09"]
[EventType "team-tourn"]
[EventCountry "FRA"]
[SourceTitle "playchess.com"]
[Source "ChessBase"]
[SourceQuality "1"]
[TimeControl "40/5400+30:1800+30"]

{[%evp 9,100,37,51,32,51,0,3,18,13,-17,0,-38,-31,-32,-31,-31,-31,-27,-28,-44,-34,-82,-92,-93,-72,-92,-87,-87,0,0,0,0,0,0,0,0,0,0,141,-34,-19,-19,-24,-34,-34,-223,-225,-472,-416,-439,-401,-530,-528,-1234,-1202,-1187,-926,-810,29989,-193,-185,-193,-185,-169,-187,-247,-246,-234,-251,-313,-286,-581,-203,-204,0,-565,-510,-725,-717,-29985,-29986,-29986,-29985,-29985,-29986,-12844,-12837,-12833,-12833,-5627,-5241,-1848,-1497]} 1. d4 {[%emt 0:00:03]} g6 {[%emt 0:00:25]} 2. Nc3 {[%emt 0:01:37]} d6 {[%emt 0:02:04]} 3. Bf4 {[%emt 0:00:55]} Bg7 {[%emt 0:00:26]} 4. Nf3 {[%emt 0:02:34]} Nd7 {[%emt 0:12:57]} 5. e4 {[%emt 0:02:05]} a6 {[%emt 0:04:09]} 6. Bc4 {[%emt 0:09:00] A41: 1 d4 d6: Tartakower System and Modern Defence.} e6 {[%emt 0:01:08]} 7. Qd2 {[%emt 0:03:15]} (7. a4 $14) 7... b5 $11 {[%emt 0:01:41]} 8. Bd3 {[%emt 0:04:15] The position is equal.} Bb7 {[%emt 0:03:51] [#]} 9. Bg5 $146 {[%emt 0:05:57]} ({Predecessor:} 9. Ne2 Ne7 10. Bh6 O-O 11. Bxg7 Kxg7 12. h4 h5 13. Ng5 c5 14. Nf4 Qe8 15. Ngxe6+ fxe6 16. Nxe6+ {½-½ (65) Mergen,B (1752)-Djidjeli,S (2065) Avoine 2017}) 9... Qb8 {[%emt 0:07:26]} 10. Ne2 {[%emt 0:07:06]} h6 {[%emt 0:05:14]} 11. Be3 {[%emt 0:01:55]} Ngf6 {[%emt 0:06:48]} 12. Ng3 {[%emt 0:06:11]} c5 {[%emt 0:01:40]} 13. c3 $1 {[%emt 0:01:25]} Ng4 {[%emt 0:00:34]} 14. h4 {[%emt 0:04:02]} Nxe3 {[%emt 0:06:56]} 15. fxe3 {[%emt 0:03:58]} (15. Qxe3 $15 {should be considered.} O-O 16. O-O) 15... h5 {[%emt 0:06:01]} 16. O-O {[%emt 0:01:26]} Bh6 {[%emt 0:02:54]} 17. Qf2 {[%emt 0:01:32] Strongly threatening Ng5.} O-O {[%emt 0:06:40][%cal Bh8f8,Bf8f7,Bf7g7][%mdl 32]} 18. Ng5 {[%emt 0:04:35][%cal Rg5f7]} Bxg5 {[%emt 0:03:45]} (18... Qe8 $17) 19. hxg5 {[%emt 0:00:05][%cal Og3h5]} Qd8 {[%emt 0:00:04]} 20. Qf4 {[%emt 0:00:22][%cal Og3h5]} e5 {[%emt 0:00:19]} 21. Qh4 {[%emt 0:00:36][%cal Og3h5] Nxh5! is the strong threat.} f6 $1 {[%emt 0:00:24]} 22. Rf5 {[%emt 0:14:09][%cal Od3c2]} Rf7 {[%emt 0:04:59]} (22... gxf5 23. g6 Re8 24. Qxh5 $18) 23. Raf1 {[%emt 0:05:59][%cal Od4c5]} gxf5 {[%emt 0:02:08]} (23... Rh7 $11 {keeps the balance.} 24. Rxf6 Nxf6 25. gxf6 Qe8) 24. g6 $2 {[%emt 0:00:47]} ({Only move:} 24. Nxf5 $16 Rh7 25. g6) 24... Rg7 $1 $15 {[%emt 0:00:56]} 25. exf5 {[%emt 0:03:14]} exd4 {[%emt 0:03:45] aiming for ...Qe7.} 26. Nxh5 {[%emt 0:03:29]} Qe7 {[%emt 0:00:48]} 27. e4 {[%emt 0:02:58]} ({Better is} 27. Nxg7 $15 Qxg7 28. exd4) 27... c4 $19 {[%emt 0:03:57]} 28. Rf3 {[%emt 0:06:51]} (28. e5 {was the only chance.} cxd3 29. e6) 28... cxd3 {[%emt 0:00:30]} 29. Rh3 {[%emt 0:00:10][%cal Oh5f6] [#] White threatens Nxf6+! and mate.} Rxg6 {[%emt 0:03:48]} 30. fxg6 {[%emt 0:01:00] Ng3 would kill now.} (30. Nf4 Qg7) 30... d2 {[%emt 0:00:36]} 31. Ng3 {[%emt 0:01:06][%csl Gh3][%cal Rh4h8]} d1=Q+ {[%emt 0:01:03]} 32. Kh2 {[%emt 0:00:02]} Qg7 {[%emt 0:01:54] Threatens to win with ...Ne5.} 33. Nf5 {[%emt 0:00:06] [#]} Bxe4 $4 {[%emt 0:02:23][%mdl 8192]} 34. Nxg7 $4 {[%emt 0:00:19][%mdl 8192]} (34. Qxe4 {mates} Qe1 35. Qxe1 Ne5 36. Nxg7 Ra7 37. Nf5 Ng4+ 38. Kg1 Ne5 39. Qh4) 34... Bxg6 {[%emt 0:00:07]} 35. Qh8+ {[%emt 0:02:12]} Kf7 {[%emt 0:00:03]} 36. Qxa8 {[%emt 0:00:16]} Kxg7 {[%emt 0:00:46] Dancing on a razor blade.} 37. Qb7 {[%emt 0:02:48]} (37. Qa7 $142 Bf5 38. Rf3) 37... Bf5 {[%emt 0:02:51]} 38. Rg3+ {[%emt 0:00:12] [#]} Kf7 $1 {[%emt 0:00:25]} 39. Qd5+ {[%emt 0:00:33]} Be6 {[%emt 0:00:06]} 40. Qxd6 {[%emt 0:00:49]} (40. Qxd4 {was worth a try.} Qh5+ 41. Kg1) 40... Qh5+ $2 {[%emt 0:02:18]} (40... Ne5 {Hoping for ...d3.} 41. Qxd4 (41. cxd4 $2 Ng4+ 42. Rxg4 Qxg4 $19) 41... Ng4+ 42. Rxg4 Qxg4 43. Qxg4 Bxg4) 41. Kg1 {[%emt 0:30:09] [#]} Qd1+ {[%emt 0:31:33]} (41... d3 $1 {White must now prevent ...Qd1+.} 42. Rxd3 Ne5) 42. Kh2 {[%emt 0:00:00]} Ne5 {[%emt 0:00:00]} 43. Qc7+ {[%emt 0:00:00]} Bd7 {[%emt 0:00:00] And now ...d3 would win.} 44. Rh3 {[%emt 0:00:00]} Ng4+ {[%emt 0:00:00]} 45. Kg3 {[%emt 0:00:00]} Qe1+ {[%emt 0:00:00]} 46. Kf4 {[%emt 0:00:00]} Qd2+ {[%emt 0:00:00]} 47. Ke4 {[%emt 0:00:00]} f5+ {[%emt 0:00:00] Black is clearly winning.} 48. Kd5 {[%emt 0:00:00]} dxc3+ {[%emt 0:00:00]} 49. Kc5 {[%emt 0:00:00]} c2 {[%emt 0:00:00]} 50. Rh7+ {[%emt 0:00:00]} Kg6 {[%emt 0:00:00] Black used his chance.  Weighted Error Value: White=0.94/Black=0.46} 0-1

[Event "FRA-ch Teams Top 16-B 2022"]
[Site "Chartres"]
[Date "2022.06.09"]
[Round "1.22"]
[White "Tregubov, Pavel V."]
[Black "Louis, Thibault"]
[Result "1-0"]
[ECO "C02"]
[WhiteElo "2541"]
[BlackElo "2154"]
[Annotator "TA"]
[PlyCount "83"]
[EventDate "2022.06.09"]
[EventType "team-tourn"]
[EventCountry "FRA"]
[SourceTitle "playchess.com"]
[Source "ChessBase"]
[SourceQuality "1"]
[TimeControl "40/5400+30:1800+30"]

{[%evp 14,83,27,8,19,-7,0,0,0,0,0,0,0,-3,36,33,34,33,106,59,80,0,137,28,110,110,116,79,104,109,148,167,202,161,363,195,339,350,420,446,429,393,371,409,387,363,500,490,507,525,599,603,622,620,597,569,876,538,1089,1071,973,941,1378,1375,1517,1430,6207,6164,5693,4972,2666,2325]} 1. e4 {[%emt 0:00:08]} e6 {[%emt 0:01:55]} 2. d4 {[%emt 0:00:06]} d5 {[%emt 0:00:04]} 3. e5 {[%emt 0:00:07]} c5 {[%emt 0:00:04]} 4. c3 {[%emt 0:00:06]} Nc6 {[%emt 0:00:29]} 5. Nf3 {[%emt 0:00:06]} Bd7 {[%emt 0:00:16]} 6. Be2 {[%emt 0:00:59]} Nge7 {[%emt 0:02:52]} 7. O-O {[%emt 0:00:40]} Ng6 {[%emt 0:00:50] The main line 7...Ng6 scores better than 7...Nf5.} 8. Re1 {[%emt 0:10:57]} Be7 {[%emt 0:00:32] C02: French: Advance Variation.} 9. Bd3 {[%emt 0:04:46]} O-O {[%emt 0:03:40]} 10. dxc5 {[%emt 0:04:33]} Bxc5 {[%emt 0:02:08] The position is equal.} 11. b4 {[%emt 0:00:08][%cal Bb2b4,Bb4b5][%mdl 32]} Bb6 {[%emt 0:04:04]} 12. b5 {[%emt 0:09:32]} Nce7 {[%emt 0:01:53]} 13. a4 {[%emt 0:09:29] [#]} f6 $146 {[%emt 0:03:24]} ({Predecessor:} 13... h6 14. Ba3 Re8 15. Nd4 Rc8 16. Qg4 Bc5 17. Bc1 Qc7 18. Nf3 Rcd8 19. h4 Kh8 20. h5 Nf8 {1-0 (36) Bayford,J-Bridger,M London 2000}) 14. exf6 {[%emt 0:05:17]} gxf6 {[%emt 0:01:00]} 15. c4 {[%emt 0:08:19]} d4 {[%emt 0:03:54]} (15... Rc8 $14) 16. Nbd2 {[%emt 0:05:43] White is more active.} (16. h4 $16) 16... e5 {[%emt 0:01:40] [#]} 17. Ba3 {[%emt 0:01:21]} (17. Nb3 $1 $16) 17... Be6 {[%emt 0:19:08] [#]} (17... Ba5 $11) 18. g3 {[%emt 0:09:44]} (18. Nb3 $1 $16) 18... Qd7 {[%emt 0:02:52]} (18... Ba5 $11 {keeps the balance.}) 19. Nb3 $16 {[%emt 0:02:44] Hoping for a5.} Bg4 {[%emt 0:11:18]} 20. Be2 {[%emt 0:01:49][%cal Of3e5]} h5 {[%emt 0:03:51]} 21. a5 {[%emt 0:04:54]} Bd8 {[%emt 0:06:49]} 22. Nfd2 {[%emt 0:00:53]} Rf7 {[%emt 0:02:19]} 23. Ne4 {[%emt 0:01:48]} b6 $2 {[%emt 0:04:38]} (23... Bxe2 {might work better.} 24. Qxe2 Qh3) 24. Bxg4 {[%emt 0:02:36]} (24. Bxe7 $142 Qxe7 25. Bxg4 hxg4 26. axb6) 24... hxg4 {[%emt 0:01:50]} (24... Qxg4 $142 25. Bxe7 Qxd1 26. Rexd1 Nxe7 27. axb6 Bxb6) 25. Bxe7 $18 {[%emt 0:01:00]} Qxe7 {[%emt 0:06:05]} 26. axb6 {[%emt 0:04:36]} f5 {[%emt 0:04:04]} 27. Rxa7 {[%emt 0:00:17]} Rxa7 {[%emt 0:00:34]} 28. bxa7 {[%emt 0:00:07]} Qxa7 {[%emt 0:00:11]} 29. Nd6 {[%emt 0:00:11]} Rf6 {[%emt 0:01:40]} 30. c5 {[%emt 0:00:10] White is clearly winning.} Qd7 {[%emt 0:06:22]} 31. Nd2 {[%emt 0:02:05][%cal Bb3d2,Bd2c4,Bc4d6][%mdl 32]} Ba5 {[%emt 0:03:30] [#]} 32. Qa4 $1 {[%emt 0:01:43]} Bc3 {[%emt 0:01:05]} (32... Bxd2 33. Qa2+) 33. Rd1 {[%emt 0:00:07]} e4 {[%emt 0:01:02]} 34. N2c4 {[%emt 0:00:09] c6 is the strong threat. Pair of Knights!} Kh7 {[%emt 0:00:54]} 35. Qc2 {[%emt 0:07:31] Black must now prevent c6.} Rxd6 {[%emt 0:00:23]} 36. Nxd6 {[%emt 0:01:37]} Ne5 {[%emt 0:00:11]} 37. Qb3 {[%emt 0:00:30]} e3 {[%emt 0:00:49]} 38. fxe3 {[%emt 0:00:41]} Nf3+ {[%emt 0:00:09]} 39. Kg2 {[%emt 0:00:38]} dxe3 {[%emt 0:00:55]} 40. Qxc3 {[%emt 0:00:24]} e2 {[%emt 0:00:06]} 41. Ra1 {[%emt 0:30:34]} Qe7 {[%emt 0:02:05]} 42. Kf2 {[%emt 0:00:00] Weighted Error Value: White=0.32/Black=0.58} 1-0

[Event "FRA-ch Teams Top 16-B 2022"]
[Site "Chartres"]
[Date "2022.06.09"]
[Round "1.23"]
[White "Roubert, Emile"]
[Black "Harutyunyan, Ruben"]
[Result "0-1"]
[ECO "B67"]
[WhiteElo "2027"]
[BlackElo "2381"]
[Annotator "TA"]
[PlyCount "64"]
[EventDate "2022.06.09"]
[EventType "team-tourn"]
[EventCountry "FRA"]
[SourceTitle "playchess.com"]
[Source "ChessBase"]
[SourceQuality "1"]
[TimeControl "40/5400+30:1800+30"]

{[%evp 25,64,16,70,75,81,97,91,87,84,87,84,84,81,55,63,90,80,77,70,84,71,53,56,9,33,0,0,0,0,-22,-11,-622,-616,-729,-733,-1195,-1195,-1125,-1076,-948,-893]} 1. e4 {[%emt 0:00:04]} c5 {[%emt 0:00:04]} 2. Nf3 {[%emt 0:00:19]} d6 {[%emt 0:00:04]} 3. d4 {[%emt 0:00:12]} cxd4 {[%emt 0:00:05]} 4. Nxd4 {[%emt 0:00:05]} Nf6 {[%emt 0:00:04]} 5. Nc3 {[%emt 0:00:11]} Nc6 {[%emt 0:00:05]} 6. Bg5 {[%emt 0:01:16]} e6 {[%emt 0:00:05]} 7. Qd2 {[%emt 0:01:11]} a6 {[%emt 0:00:04]} 8. O-O-O {[%emt 0:03:56]} Bd7 {[%emt 0:00:03]} 9. f4 {[%emt 0:02:45][%cal Bf2f4,Bf4f5][%mdl 32]} b5 {[%emt 0:00:37]} 10. Bxf6 {[%emt 0:03:01]} gxf6 {[%emt 0:00:06]} 11. Kb1 {[%emt 0:04:42]} Qb6 {[%emt 0:00:06]} 12. Nxc6 {[%emt 0:07:49]} Bxc6 {[%emt 0:00:35]} 13. Qe1 {[%emt 0:00:27]} Ra7 {[%emt 0:00:02] was the old line (13...Be7).} ({Black should play} 13... O-O-O $11) 14. f5 $14 {[%emt 1:11:32] B67: Sicilian: Richter-Rauzer: 7...a6 8 0-0-0 Bd7, lines without 9 f4 Be7.} b4 {[%emt 1:35:30]} 15. Ne2 {[%emt 0:00:30][%cal Bc3e2,Be2g3,Bg3h5][%mdl 32]} e5 {[%emt 0:00:30]} 16. Ng3 {[%emt 0:00:00] White is better.} Qc5 {[%emt 0:00:30] [#] Prevents Bc4.} 17. Nh5 $1 {[%emt 0:00:00]} Be7 {[%emt 0:00:30] [#]} 18. Bd3 $146 {[%emt 0:01:30]} ({Predecessor:} 18. Qg3 Bxe4 19. Bd3 Bxd3 20. cxd3 Qd5 21. d4 e4 22. Rhe1 Kd7 23. Qg4 b3 24. axb3 {1-0 (33) Wosch,A (2396)-Koch,H (2363) ICCF email 2007}) 18... a5 {[%emt 0:00:30]} 19. Qg3 {[%emt 0:00:00]} a4 {[%emt 0:00:30]} 20. Qg7 {[%emt 0:00:00][%csl LRf6,LRh8]} Rf8 {[%emt 0:00:30]} 21. Nxf6+ {[%emt 0:00:00]} Bxf6 {[%emt 0:00:00]} 22. Qxf6 {[%emt 0:00:00][%cal Od3b5] Hoping for Bb5!} Rd7 {[%emt 0:00:00]} 23. Rhe1 {[%emt 0:00:00]} a3 $1 {[%emt 0:00:00]} 24. Qg5 {[%emt 0:03:00]} (24. Re2 $14) 24... f6 $11 {[%emt 0:00:00]} 25. Qc1 {[%emt 0:00:00]} axb2 {[%emt 0:00:00]} 26. Qxb2 {[%emt 0:00:00]} Ke7 {[%emt 0:00:00] [#] And now ...Ra8 would win.} 27. Qb3 {[%emt 0:00:00]} d5 {[%emt 0:00:00][%cal Bd6d5,Bd5e4][%mdl 32] Prevents Bc4. Threatens to win with ...Ra8. Active counter play!} 28. Rc1 $2 {[%emt 0:00:00][%mdl 8192] Now White is beyond hope.} (28. Ba6 $11) 28... Ra8 $19 {[%emt 0:00:00] Black is clearly winning.} 29. Qb2 {[%emt 0:00:15]} Rda7 {[%emt 0:00:13]} 30. Re2 {[%emt 0:01:40]} Rxa2 {[%emt 0:00:25]} 31. Qxa2 {[%emt 0:00:11]} Rxa2 {[%emt 0:00:03]} 32. Kxa2 {[%emt 0:00:05]} dxe4 {[%emt 0:00:04] Weighted Error Value: White=0.81/Black=0.06 (flawless)} 0-1

[Event "FRA-ch Teams Top 16-B 2022"]
[Site "Chartres"]
[Date "2022.06.09"]
[Round "1.24"]
[White "Afraoui, Anaelle"]
[Black "Bourgoin, Cecile"]
[Result "1-0"]
[ECO "C12"]
[WhiteElo "2115"]
[BlackElo "1682"]
[Annotator "TA"]
[PlyCount "69"]
[EventDate "2022.06.09"]
[EventType "team-tourn"]
[EventCountry "FRA"]
[SourceTitle "playchess.com"]
[Source "ChessBase"]
[SourceQuality "1"]
[TimeControl "40/5400+30:1800+30"]

{[%evp 21,69,-47,-28,-29,-24,-39,-25,-40,56,57,139,135,151,141,150,140,149,139,182,189,227,222,229,236,311,331,290,303,397,377,362,170,138,150,309,309,402,378,355,356,665,654,810,795,912,926,1268,1264,29988,29989]} 1. e4 {[%emt 0:00:05]} e6 {[%emt 0:00:03]} 2. d4 {[%emt 0:00:13]} d5 {[%emt 0:00:07]} 3. Nc3 {[%emt 0:00:05]} Nf6 {[%emt 0:00:08]} 4. Bg5 {[%emt 0:00:14]} Bb4 {[%emt 0:00:14]} 5. e5 {[%emt 0:00:13]} h6 {[%emt 0:00:13]} 6. Bd2 {[%emt 0:00:18]} Bxc3 {[%emt 0:00:45]} 7. bxc3 {[%emt 0:00:24]} Ne4 {[%emt 0:00:33]} 8. Qg4 {[%emt 0:00:27]} Kf8 {[%emt 0:00:18]} 9. Bd3 {[%emt 0:01:12]} Nxd2 {[%emt 0:00:30]} 10. Kxd2 {[%emt 0:00:17]} c5 {[%emt 0:01:46]} 11. h4 {[%emt 0:05:46]} c4 {[%emt 0:01:27]} 12. Be2 {[%emt 0:00:52] C12: French: Classical System: McCutcheon Variation.} b5 {[%emt 0:01:27] was the old line (12...Nc6).} 13. Nh3 {[%emt 0:01:58]} Nc6 {[%emt 0:23:05]} 14. a4 {[%emt 0:07:44] [#] Black has an edge.} b4 $146 {[%emt 0:19:29]} (14... bxa4 $15 15. Rxa4 (15. Nf4 Qa5 $17) 15... a5) ({Predecessor:} 14... bxa4 15. Rxa4 a5 16. Nf4 Bd7 17. Ra2 a4 18. Nh5 Rg8 19. Qf4 Ne7 20. g4 Rh8 21. Qg3 Kg8 22. f4 Kh7 23. Rg1 Ng6 24. Rh1 {½-½ (24) Cleto,D (2092)-Kuliy,O (2003) FICGS email 2020}) 15. cxb4 $14 {[%emt 0:06:04]} c3+ {[%emt 0:09:38]} ({Black should play} 15... Nxb4 $14 16. Rhb1 Nc6) 16. Kxc3 $16 {[%emt 0:05:30]} Qc7 {[%emt 0:13:37] [#] Hoping for ...Nxe5+.} 17. Kd2 {[%emt 0:01:10] Threatens to win with c3.} Nxb4 {[%emt 0:01:40]} 18. c3 {[%emt 0:00:10] Active counter play!} Nc6 {[%emt 0:00:52][%cal Bb4c6,Bc6a5,Ba5b3][%mdl 32]} 19. Rhb1 {[%emt 0:01:39]} Bd7 {[%emt 0:01:50]} 20. Nf4 $36 {[%emt 0:06:29][%mdl 2048] White is really pushing.} Rb8 {[%emt 0:01:53]} 21. Nh5 {[%emt 0:02:52]} Rg8 {[%emt 0:00:26] [#]} 22. Bd3 {[%emt 0:02:25]} Na5 {[%emt 0:04:28]} 23. Rxb8+ {[%emt 0:04:47]} Qxb8 {[%emt 0:00:15]} 24. Rb1 {[%emt 0:00:41] Prevents Qb2+.} (24. Ke3 Qb2 25. Qd1 Qxc3 $11) 24... Nb3+ {[%emt 0:01:01]} 25. Ke1 {[%emt 0:01:21]} Bxa4 {[%emt 0:02:34] And now ...Qc7 would win.} 26. Bh7 {[%emt 0:03:23]} (26. Qe2 $142 Qc7 27. Qb2) 26... Qc7 {[%emt 0:03:37] White must now prevent ...g6.} 27. Qg3 {[%emt 0:01:02]} ({But not} 27. Bxg8 $2 Qxc3+ 28. Kf1 Qd3+ 29. Kg1 Qxb1+ 30. Kh2 Qg6 31. Qxg6 fxg6 $19) 27... g6 $2 {[%emt 0:01:32] This move loses the game for Black.} (27... Qc4 $16) 28. Bxg8 $18 {[%emt 0:01:17]} Kxg8 {[%emt 0:00:23]} 29. Nf6+ {[%emt 0:00:16]} Kf8 {[%emt 0:01:00]} 30. Qe3 {[%emt 0:00:34]} Ke7 $2 {[%emt 0:01:02]} (30... Qc4 31. f3 (31. Qxh6+ Ke7 $16) 31... Bb5) 31. Kf1 {[%emt 0:01:00]} h5 {[%emt 0:02:07]} 32. Kg1 {[%emt 0:02:47]} Kd8 {[%emt 0:05:43]} 33. Qh6 {[%emt 0:03:00] Threatening mate with Qf8+.} Kc8 {[%emt 0:01:10]} 34. Qf8+ {[%emt 0:00:42]} Kb7 {[%emt 0:01:21]} 35. Qb4+ {[%emt 0:00:23] Weighted Error Value: White=0.12 (very precise) /Black=0.88} 1-0

[Event "FRA-ch Teams Top 16-B 2022"]
[Site "Chartres"]
[Date "2022.06.09"]
[Round "1.25"]
[White "Donchenko, Alexander"]
[Black "Esipenko, Andrey"]
[Result "1-0"]
[ECO "E46"]
[WhiteElo "2599"]
[BlackElo "2709"]
[Annotator "TA"]
[PlyCount "47"]
[EventDate "2022.06.09"]
[EventType "team-tourn"]
[EventCountry "FRA"]
[SourceTitle "playchess.com"]
[Source "ChessBase"]
[SourceQuality "1"]
[TimeControl "40/5400+30:1800+30"]

{[%evp 11,47,0,0,0,0,0,0,0,0,0,0,1,14,0,0,2,0,0,0,0,0,0,0,0,18,0,0,0,3,6,6,5,15,8,18,20,395,377]} 1. d4 {[%emt 0:00:02]} Nf6 {[%emt 0:00:11]} 2. c4 {[%emt 0:00:10]} e6 {[%emt 0:00:19]} 3. Nc3 {[%emt 0:00:25]} Bb4 {[%emt 0:00:13]} 4. e3 {[%emt 0:00:08]} O-O {[%emt 0:00:14]} 5. Bd2 {[%emt 0:00:16]} d5 {[%emt 0:01:43]} 6. a3 {[%emt 0:00:55]} Be7 {[%emt 0:10:53]} 7. Nf3 {[%emt 0:00:14] E46: Nimzo-Indian: Rubinstein: 4 e3 0-0 5 Ne2 without early Bd3.} b6 {[%emt 0:00:46]} 8. cxd5 {[%emt 0:01:12]} exd5 {[%emt 0:00:09]} 9. Bd3 {[%emt 0:00:32] The position is equal.} c5 {[%emt 0:03:10]} 10. Ne5 {[%emt 0:02:36] [#]} Ba6 $146 {[%emt 0:02:07]} ({Predecessor:} 10... Bb7 11. O-O Nc6 12. Be1 cxd4 13. Nxc6 Bxc6 14. exd4 Ne4 15. Rc1 Bb7 16. f3 Nxc3 17. Bxc3 {1-0 (41) Ivanchuk,V (2678)-Dzagnidze,N (2523) Chess.com INT 2021}) 11. Bxa6 {[%emt 0:01:03]} Nxa6 {[%emt 0:00:06]} 12. Nc6 {[%emt 0:00:33]} Qe8 {[%emt 0:00:25]} 13. Nxe7+ {[%emt 0:00:07]} Qxe7 {[%emt 0:00:02]} 14. O-O {[%emt 0:03:12]} Rfd8 {[%emt 0:07:24][%cal Bf8d8,Bd8d6,Bd6a6][%mdl 32]} 15. Ne2 {[%emt 0:02:35]} Ne4 {[%emt 0:01:54]} 16. dxc5 {[%emt 0:00:52]} bxc5 {[%emt 0:05:20]} 17. Ba5 {[%emt 0:03:55]} Rd6 {[%emt 0:03:08]} 18. Ng3 {[%emt 0:16:31]} Nxg3 {[%emt 0:03:12]} 19. hxg3 {[%emt 0:02:00]} Rb8 {[%emt 0:07:58]} 20. b4 {[%emt 0:14:03]} cxb4 {[%emt 0:08:03]} 21. axb4 {[%emt 0:00:37]} Nxb4 {[%emt 0:16:04]} 22. Rb1 {[%emt 0:01:10]} Ra6 {[%emt 0:00:26]} 23. Qa4 {[%emt 0:07:59][%cal Rb1b4][%mdl 1024] White has compensation.} Qd8 $2 {[%emt 0:01:40][%mdl 8192] [#]} (23... Qf8 $1 $11) 24. Qxb4 $1 {[%emt 0:00:54] Weighted Error Value: White=0.02 (flawless) /Black=0.33} 1-0

[Event "FRA-ch Teams Top 16-B 2022"]
[Site "Chartres"]
[Date "2022.06.09"]
[Round "1.26"]
[White "Movsesian, Sergei"]
[Black "Solodovnichenko, Yuri"]
[Result "1/2-1/2"]
[ECO "C42"]
[WhiteElo "2600"]
[BlackElo "2499"]
[Annotator "TA"]
[PlyCount "52"]
[EventDate "2022.06.09"]
[EventType "team-tourn"]
[EventCountry "FRA"]
[SourceTitle "playchess.com"]
[Source "ChessBase"]
[SourceQuality "1"]
[TimeControl "40/5400+30:1800+30"]

{[%evp 9,52,0,9,19,10,0,0,0,0,0,27,19,15,6,36,34,58,55,49,49,54,23,68,21,40,40,53,39,70,0,0,0,0,0,0,0,0,0,0,0,0,0,0,0,0]} 1. e4 {[%emt 0:00:04]} e5 {[%emt 0:00:08]} 2. Nf3 {[%emt 0:00:11]} Nf6 {[%emt 0:00:07]} 3. Nxe5 {[%emt 0:00:36][%cal Bf3e5,Be5d3,Bd3f4][%mdl 32]} d6 {[%emt 0:00:09][%cal Bd7d6,Bd6d5][%mdl 32]} 4. Nd3 {[%emt 0:00:18]} Nxe4 {[%emt 0:00:23]} 5. Nf4 {[%emt 0:00:13]} d5 {[%emt 0:07:36]} (5... Qh4 6. g3 Qe7 7. Be2 $14) 6. d4 {[%emt 0:00:40] [#] C42: Petroff Defence: 3 Nxe5 and unusual White 3rd moves.} c6 $146 {[%emt 0:09:41]} ({Predecessor:} 6... Be7 7. Bd3 O-O 8. O-O Nc6 9. c3 Nf6 10. Nd2 Bd6 11. Nf3 Re8 12. h3 Bd7 {0-1 (70) Fedoseev,V (2704)-Paravyan,D (2617) Chess.com INT 2022}) 7. Bd3 {[%emt 0:02:35][%cal Bf1d3,Bd3e4,Be4d5][%mdl 32]} Bd6 {[%emt 0:02:03]} (7... g5 8. Nh5 $16) 8. O-O {[%emt 0:02:21]} O-O {[%emt 0:03:14]} ({Don't do} 8... Qh4 9. g3 Qd8 10. Bxe4 (10. f3 Ng5 $11) 10... dxe4 11. Nc3 $16) 9. c4 {[%emt 0:10:11]} Qf6 {[%emt 0:14:43] [#]} ({Much less strong is} 9... Qh4 10. g3 Qd8 11. cxd5 $14) 10. cxd5 $1 {[%emt 0:12:14]} Bxf4 {[%emt 0:01:09]} (10... Bf5 11. Bc2) 11. Bxe4 {[%emt 0:00:27] And now Nc3 would win.} Bxc1 {[%emt 0:10:48]} (11... Bxh2+ $5 12. Kxh2 Qh4+ 13. Kg1 Qxe4 $11) 12. Qxc1 {[%emt 0:01:33]} cxd5 {[%emt 0:11:06]} 13. Bxd5 {[%emt 0:00:47]} Qxd4 {[%emt 0:00:27]} 14. Rd1 {[%emt 0:04:22]} Qb6 {[%emt 0:00:37]} 15. Nc3 {[%emt 0:04:27]} Bg4 {[%emt 0:08:33]} 16. Re1 {[%emt 0:11:56]} (16. Na4 $14 {deserves consideration.} Qb5 17. Rd4) 16... Nd7 {[%emt 0:05:18]} 17. Re7 {[%emt 0:04:28]} Rad8 {[%emt 0:02:05]} 18. h3 {[%emt 0:08:52]} Bf5 {[%emt 0:06:51]} 19. g4 {[%emt 0:18:49]} (19. Qe3 $14) 19... Be6 $11 {[%emt 0:03:22] The position is equal.} 20. Bxe6 $1 {[%emt 0:00:59]} fxe6 {[%emt 0:00:04]} 21. Qe1 {[%emt 0:02:06]} Ne5 {[%emt 0:03:07]} 22. Qxe5 {[%emt 0:02:04][%csl Ge7][%cal Re5g7] [#]} Qxf2+ {[%emt 0:00:05]} 23. Kh1 {[%emt 0:00:02][%csl Ge7][%cal Re5g7]} Qf3+ {[%emt 0:00:07]} 24. Kg1 {[%emt 0:00:02][%csl Ge7][%cal Re5g7]} Qf2+ {[%emt 0:00:13]} 25. Kh1 {[%emt 0:00:03][%csl Ge7][%cal Re5g7]} Qf3+ {[%emt 0:00:03]} 26. Kg1 {[%emt 0:00:05][%csl Ge7][%cal Re5g7]} Qf2+ {[%emt 0:11:31] Weighted Error Value: White=0.08 (flawless) /Black=0.08 (flawless)} 1/2-1/2